bitfinex-derivatives/quotes_ETHF0:USTF0_20241024
["timestamp","ask_amount","ask_price","bid_price","bid_amount"]
[1729788185562,1.70163557,2520.5,2520.3,0.39702]
[1729788185563,0.82002,2520.4,2520.3,0.39702]
[1729788185858,0.423,2520.4,2520.3,0.39702]
[1729788186850,1.70963557,2520.4,2520.3,0.39702]
[1729788188358,2.10665557,2520.4,2520.3,0.39702]
[1729788189655,1.70963557,2520.4,2520.1,4.0526]
[1729788189856,0.39704,2520.3,2520.2,0.39703]
[1729788190563,0.423,2520.4,2520.1,3.2078]
[1729788190760,0.39707,2520.1,2520.0,0.39706]
[1729788190950,1.68370557,2520.1,2520.0,0.39706]
[1729788191556,0.39708,2520.0,2519.9,0.39708]
[1729788191747,2.11701557,2520.0,2519.9,0.39708]
[1729788196960,1.71993557,2520.0,2519.9,1.68371557]
[1729788197152,0.4387,2520.2,2520.0,0.39708]
[1729788197352,0.4387,2520.2,2519.8,4.63876]
[1729788197353,1.72533557,2520.2,2520.1,1.28663557]
[1729788197559,4.89145557,2520.4,2520.3,0.39703]
[1729788198167,1.28663557,2520.4,2520.3,0.39703]
[1729788198563,1.68365557,2520.4,2520.3,0.39703]
[1729788199967,0.39703,2520.3,2520.2,3.60483]
[1729788200169,2.09696557,2520.3,2520.2,3.60483]
[1729788200368,3.38360114,2520.3,2520.2,3.2078]
[1729788200570,2.09696557,2520.3,2520.2,3.60485]
[1729788200764,2.09696557,2520.3,2520.2,3.2078]
[1729788200962,2.09696557,2520.3,2520.2,3.60485]
[1729788202474,2.09696557,2520.3,2520.2,0.39705]
[1729788202771,3.38360114,2520.3,2520.2,0.39705]
[1729788202969,2.09696557,2520.3,2520.2,0.39705]
[1729788207273,3.38360114,2520.3,2520.2,0.39705]
[1729788207668,2.09696557,2520.3,2520.2,0.39705]
[1729788208368,2.09696557,2520.3,2520.0,0.39706]
[1729788208369,0.39707,2520.1,2520.0,0.39706]
[1729788208565,1.68370557,2520.1,2520.0,0.39706]
[1729788209480,0.39713,2519.8,2519.7,0.39711]
[1729788209676,0.39713,2519.8,2519.6,3.2078]
[1729788209677,0.39713,2519.7,2519.6,3.2078]
[1729788209979,2.91116557,2519.7,2519.6,3.2078]
[1729788210582,2.91116557,2519.7,2519.6,3.60494]
[1729788211178,2.91116557,2519.7,2519.6,3.2078]
[1729788211777,2.91116557,2519.7,2519.6,3.60494]
[1729788212278,2.91116557,2519.7,2519.6,3.2078]
[1729788213278,2.91116557,2519.7,2519.6,3.60494]
[1729788213679,2.91116557,2519.7,2519.6,3.2078]
[1729788214471,2.91116557,2519.7,2519.6,3.60494]
[1729788214868,2.91116557,2519.7,2519.6,3.2078]
[1729788215172,2.91116557,2519.7,2519.4,0.4087]
[1729788215173,0.39717,2519.5,2519.4,0.39716]
[1729788215480,1.68380557,2519.5,2519.4,0.39716]
[1729788215680,0.39717,2519.4,2519.3,3.60498]
[1729788215878,2.12160557,2519.4,2519.3,3.60498]
[1729788216678,2.12160557,2519.4,2519.3,3.60499]
[1729788217174,2.12160557,2519.4,2519.3,3.2078]
[1729788217984,2.12160557,2519.4,2519.3,3.60499]
[1729788218281,2.12160557,2519.4,2519.3,3.2078]
[1729788218471,2.12160557,2519.4,2519.3,3.60499]
[1729788218672,2.12160557,2519.4,2519.3,3.2078]
[1729788218867,0.3972,2519.2,2519.1,0.39721]
[1729788219081,1.68383557,2519.2,2519.1,0.39721]
[1729788219675,0.39722,2519.1,2519.0,1.22232]
[1729788219878,1.70293557,2519.1,2519.0,1.22232]
[1729788220478,1.28663557,2519.1,2519.0,2.50895557]
[1729788220778,1.28663557,2519.1,2519.0,2.50897557]
[1729788221482,1.28663557,2519.1,2519.0,1.22234]
[1729788221677,1.28663557,2519.1,2519.0,2.50897557]
[1729788224880,0.8259,2519.3,2519.0,2.50897557]
[1729788225081,1.70733557,2519.3,2519.2,4.89163557]
[1729788226180,1.70733557,2519.3,2519.2,3.605]
[1729788226386,1.28663557,2519.3,2519.2,4.89163557]
[1729788226582,1.28663557,2519.3,2519.2,4.49443557]
[1729788226780,1.28663557,2519.3,2519.2,3.605]
[1729788227780,0.4214,2519.8,2519.7,0.39713]
[1729788227986,0.81851,2519.8,2519.7,0.39713]
[1729788228187,2.10514557,2519.8,2519.7,0.39713]
[1729788229674,0.81851,2519.8,2519.7,0.39713]
[1729788229875,2.10514557,2519.8,2519.7,0.39713]
[1729788233088,1.70803557,2519.8,2519.7,0.39713]
[1729788233586,2.10514557,2519.8,2519.7,0.39713]
[1729788233783,1.70803557,2519.8,2519.7,0.39713]
[1729788234082,0.4214,2519.8,2519.7,0.39713]
[1729788234387,1.70803557,2519.8,2519.7,0.39713]
[1729788235185,0.4449,2520.1,2520.0,0.39708]
[1729788235494,0.4449,2520.1,2519.9,1.28663557]
[1729788235495,1.28663557,2520.1,2519.9,1.28663557]
[1729788235682,2.12991557,2520.1,2520.0,0.39707]
[1729788236580,1.73283557,2520.1,2520.0,0.39707]
[1729788236776,2.12989557,2520.1,2520.0,0.39707]
[1729788238484,2.12989557,2520.1,2519.8,3.2078]
[1729788238485,0.39709,2520.0,2519.9,0.39709]
[1729788238686,0.39709,2520.0,2519.8,3.6049]
[1729788238687,0.39709,2519.9,2519.8,3.6049]
[1729788238892,2.52442557,2519.9,2519.8,3.6049]
[1729788239587,2.12733557,2519.9,2519.8,3.6049]
[1729788239890,2.52442557,2519.9,2519.8,3.6049]
[1729788241191,2.52442557,2519.9,2519.8,0.3971]
[1729788241893,2.52442557,2519.9,2519.3,0.99295]
[1729788241894,0.39714,2519.7,2519.6,0.39712]
[1729788242088,1.68377557,2519.7,2519.6,0.39712]
[1729788245491,1.28663557,2519.7,2519.4,3.2078]
[1729788245792,1.83345,2519.9,2519.5,0.39714]
[1729788245793,0.8279,2519.6,2519.5,0.39714]
[1729788246691,0.39712,2519.8,2519.5,0.39714]
[1729788246692,0.80279,2519.9,2519.8,0.39711]
[1729788246997,0.4057,2519.9,2519.8,0.39711]
[1729788247592,2.08942557,2519.9,2519.8,0.39711]
[1729788248585,1.69233557,2519.9,2519.8,0.39711]
[1729788249296,2.08942557,2519.9,2519.8,0.39711]
[1729788249592,1.69233557,2519.9,2519.8,0.39711]
[1729788249998,2.08942557,2519.9,2519.8,0.39711]
[1729788250496,1.69233557,2519.9,2519.8,0.39711]
[1729788250897,2.08942557,2519.9,2519.8,0.39711]
[1729788251092,1.69233557,2519.9,2519.8,0.39711]
[1729788251890,1.28663557,2519.9,2519.8,5.25543557]
[1729788252093,1.28663557,2519.9,2519.8,6.05624557]
[1729788254401,1.28663557,2519.9,2519.8,2.08744557]
[1729788254591,1.28663557,2519.9,2519.8,0.80081]
[1729788254796,1.28663557,2519.9,2519.8,4.76961]
[1729788254997,1.28663557,2519.9,2519.8,0.39711]
[1729788255191,1.70533557,2519.9,2519.8,0.39711]
[1729788255596,2.10242557,2519.9,2519.8,0.39711]
[1729788256302,0.39711,2519.8,2519.7,3.60491]
[1729788256605,2.55084557,2519.8,2519.7,3.60491]
[1729788260605,2.15373557,2519.8,2519.4,3.2078]
[1729788260908,1.68379557,2519.5,2519.4,3.2078]
[1729788261100,0.39717,2519.4,2519.3,0.39718]
[1729788261307,2.56590557,2519.4,2519.3,0.39718]
[1729788261603,2.16873557,2519.4,2519.3,0.39718]
[1729788261800,2.56590557,2519.4,2519.3,0.39718]
[1729788261996,2.56590557,2519.4,2519.3,1.68381557]
[1729788261997,2.16873557,2519.4,2519.3,1.68381557]
[1729788262503,0.39715,2519.6,2519.5,0.39714]
[1729788262807,2.12838557,2519.6,2519.5,0.39714]
[1729788263603,1.73123557,2519.6,2519.5,1.68377557]
[1729788263798,1.73123557,2519.6,2519.5,2.10597557]
[1729788264305,1.28663557,2519.6,2519.5,2.10597557]
[1729788264505,1.28663557,2519.6,2519.5,6.07477557]
[1729788264806,1.72413557,2519.7,2519.6,0.39714]
[1729788265600,1.28663557,2519.8,2519.6,5.25543557]
[1729788265900,1.28663557,2519.7,2519.6,3.2078]
[1729788266102,0.4071,2519.9,2519.5,0.4222]
[1729788266302,0.39712,2519.8,2519.7,0.39711]
[1729788266701,0.4071,2519.9,2519.5,3.63]
[1729788266902,0.4071,2519.9,2519.8,0.39711]
[1729788267208,0.80419,2519.9,2519.8,0.39711]
[1729788267510,0.4071,2519.9,2519.8,0.39711]
[1729788267698,1.69373557,2519.9,2519.8,0.39711]
[1729788267903,2.09082557,2519.9,2519.8,0.39711]
[1729788268104,2.09082557,2519.9,2519.8,0.82771]
[1729788268411,1.69373557,2519.9,2519.8,0.82771]
[1729788269006,0.4071,2519.9,2519.8,0.82771]
[1729788269210,1.28663557,2520.0,2519.9,0.39709]
[1729788269412,1.28663557,2520.0,2519.9,0.83149]
[1729788269707,0.8611,2520.1,2520.0,0.39708]
[1729788270006,2.14773557,2520.1,2520.0,0.39708]
[1729788270406,0.8611,2520.1,2520.0,0.39708]
[1729788271511,1.25816,2520.1,2520.0,0.39708]
[1729788272702,0.8611,2520.1,2520.0,0.39708]
[1729788272902,1.25816,2520.1,2520.0,0.39708]
[1729788273301,0.8611,2520.1,2520.0,0.39708]
[1729788274109,1.25816,2520.1,2520.0,0.39708]
[1729788278514,0.8611,2520.1,2520.0,0.39708]
[1729788279721,0.4213,2520.2,2520.0,3.968]
[1729788279915,0.81836,2520.2,2520.1,0.39706]
[1729788280315,0.81835,2520.2,2520.1,0.39706]
[1729788283218,0.4213,2520.2,2520.1,0.39706]
[1729788283821,0.39704,2520.3,2520.2,0.39705]
[1729788285514,1.2891,2520.4,2520.3,0.39703]
[1729788286514,0.8422,2520.4,2520.3,0.83183]
[1729788286719,3.60481,2520.5,2520.4,0.39702]
[1729788287316,3.2078,2520.5,2520.4,0.39702]
[1729788287512,3.2078,2520.5,2520.4,0.80832]
[1729788287924,3.6048,2520.5,2520.4,0.80832]
[1729788289921,3.6048,2520.5,2520.4,0.39702]
[1729788290322,4.89207601,2520.5,2520.4,0.39702]
[1729788295630,1.68427601,2520.5,2520.4,0.39702]
[1729788297825,1.28727601,2520.5,2520.2,1.28727601]
[1729788298029,3.2078,2520.6,2520.3,0.39702]
[1729788298030,2.09980601,2520.4,2520.3,0.39702]
[1729788299625,0.4155,2520.4,2520.3,1.68429601]
[1729788300831,0.81252,2520.4,2520.3,1.68429601]
[1729788301234,0.4155,2520.4,2520.3,1.68429601]
[1729788301634,0.81252,2520.4,2520.3,1.68429601]
[1729788302338,0.4155,2520.4,2520.3,1.68429601]
[1729788303140,0.81252,2520.4,2520.3,1.68429601]
[1729788303541,2.09979601,2520.4,2520.3,0.39702]
[1729788304243,2.09979601,2520.4,2520.3,1.68429601]
[1729788305731,3.2078,2520.6,2520.3,1.28727601]
[1729788305932,0.823,2521.1,2520.5,1.28727601]
[1729788306238,2.10449601,2521.1,2521.0,0.39692]
[1729788306437,1.70757601,2521.1,2520.9,1.28727601]
[1729788306639,1.68419601,2521.0,2520.9,0.39692]
[1729788306838,0.39695,2520.9,2520.8,0.39695]
[1729788307046,2.53512601,2520.9,2520.8,0.39695]
[1729788307836,2.13817601,2520.9,2520.7,4.49507601]
[1729788308032,1.68422601,2520.8,2520.7,3.60475]
[1729788308239,1.68422601,2520.8,2520.7,0.39695]
[1729788308534,1.68422601,2520.8,2520.6,0.39698]
[1729788308535,0.39697,2520.7,2520.6,0.39698]
[1729788308740,0.397,2520.5,2520.4,3.2078]
[1729788308942,1.68427601,2520.5,2520.4,3.2078]
[1729788309135,1.68427601,2520.5,2520.4,3.60482]
[1729788309335,1.68427601,2520.5,2520.4,3.2078]
[1729788309535,2.54887601,2520.5,2520.4,3.2078]
[1729788310047,0.39702,2520.4,2520.3,1.28727601]
[1729788310244,0.39705,2520.2,2520.1,3.60486]
[1729788310444,0.39709,2520.0,2519.8,3.2078]
[1729788310635,2.13517601,2519.9,2519.8,3.60491]
[1729788310840,0.8479,2519.9,2519.8,4.89218601]
[1729788311332,1.24499,2519.9,2519.8,4.89218601]
[1729788311538,0.8479,2519.9,2519.8,4.89218601]
[1729788312144,1.24499,2519.9,2519.8,4.89218601]
[1729788312339,1.24499,2519.9,2519.8,3.2078]
[1729788312641,1.24499,2519.9,2519.8,3.60491]
[1729788313840,0.8479,2519.9,2519.8,3.60491]
[1729788314053,0.4458,2520.1,2520.0,0.39708]
[1729788314243,0.8417,2520.3,2520.2,0.39705]
[1729788315544,0.4139,2520.4,2520.1,3.2078]
[1729788315744,1.22499,2520.6,2520.5,0.397]
[1729788315950,1.22499,2520.6,2520.1,4.20045]
[1729788315951,0.39701,2520.5,2520.4,0.397]
[1729788316253,1.22499,2520.6,2520.5,0.397]
[1729788316743,0.828,2520.6,2520.5,0.397]
[1729788316943,0.4374,2520.7,2520.5,0.397]
[1729788317147,0.4374,2520.7,2520.6,0.39698]
[1729788317541,0.4046,2520.8,2520.7,0.39697]
[1729788317949,4.02815,2520.9,2520.8,0.39695]
[1729788318149,0.4234,2520.9,2520.8,0.39695]
[1729788318351,4.65733865,2521.5,2521.2,0.39689]
[1729788318648,5.17482072,2521.6,2520.9,0.99233]
[1729788318649,0.39689,2521.2,2521.1,3.18657061]
[1729788318944,0.39688,2521.3,2521.2,0.39688]
[1729788319353,0.39686,2521.4,2521.3,0.39686]
[1729788319556,0.81075,2521.5,2521.4,0.39686]
[1729788319746,0.39688,2521.3,2521.2,0.39688]
[1729788320045,0.4139,2521.5,2521.1,2.78968061]
[1729788320243,0.39686,2521.4,2521.3,0.39686]
[1729788322642,0.4139,2521.5,2521.2,0.39688]
[1729788322643,0.39688,2521.3,2521.2,0.39688]
[1729788323349,0.39689,2521.2,2521.1,3.6047]
[1729788323758,0.39689,2521.2,2521.1,3.2078]
[1729788323951,4.19570061,2521.5,2520.9,0.39692]
[1729788324147,0.39692,2521.0,2520.9,0.39692]
[1729788324654,0.39692,2521.0,2520.7,6.43908061]
[1729788324655,4.19570061,2521.5,2520.7,6.43908061]
[1729788324951,0.80454,2520.9,2520.8,0.39695]
[1729788325651,0.4076,2520.9,2520.8,0.39695]
[1729788326055,0.4076,2520.9,2520.7,5.99748061]
[1729788326056,0.4076,2520.9,2520.7,3.2078]
[1729788326248,1.2504,2520.9,2520.7,3.2078]
[1729788326452,0.39696,2520.8,2520.7,0.39696]
[1729788327148,0.39697,2520.7,2520.6,0.39698]
[1729788328446,2.24276,2520.9,2520.4,3.2078]
[1729788328756,2.24276,2520.9,2520.4,3.60481]
[1729788328757,0.397,2520.5,2520.4,3.60481]
[1729788329654,0.397,2520.6,2520.5,0.39699]
[1729788332361,0.397,2520.5,2520.4,3.6048]
[1729788332555,0.397,2520.5,2520.4,3.2078]
[1729788332759,0.99243,2520.7,2520.4,0.39701]
[1729788333651,5.03244061,2520.9,2520.3,3.2078]
[1729788333846,0.39699,2520.6,2520.5,0.39699]
[1729788336159,1.2504,2520.9,2520.3,5.99748061]
[1729788336361,1.2504,2520.9,2520.5,2.78968061]
[1729788336859,0.39695,2520.8,2520.7,0.39695]
[1729788337767,1.64734,2520.9,2520.8,0.39695]
[1729788338063,1.64734,2520.9,2520.7,0.39696]
[1729788338064,0.39696,2520.8,2520.7,0.39696]
[1729788339361,1.64734,2520.9,2520.6,3.2078]
[1729788339561,1.2504,2520.9,2520.8,0.39695]
[1729788339863,1.64734,2520.9,2520.8,0.39695]
[1729788340055,0.39695,2520.8,2520.7,0.81476]
[1729788340762,1.64735,2520.9,2520.8,0.39695]
[1729788341356,0.4236,2520.9,2520.8,0.39695]
[1729788341566,0.82054,2520.9,2520.8,0.82265]
[1729788341758,0.4236,2520.9,2520.8,0.82265]
[1729788341959,0.39695,2520.8,2520.7,0.81476]
[1729788342958,0.82055,2520.9,2520.8,0.39695]
[1729788343772,0.4236,2520.9,2520.8,0.39695]
[1729788344177,0.82054,2520.9,2520.8,0.39695]
[1729788346269,0.4236,2520.9,2520.8,0.39695]
[1729788346471,0.82054,2520.9,2520.8,0.39695]
[1729788346673,0.4236,2520.9,2520.8,0.39695]
[1729788346879,0.82054,2520.9,2520.8,0.39695]
[1729788347272,0.39692,2521.1,2521.0,0.39691]
[1729788347679,0.39692,2521.0,2520.9,3.60473]
[1729788348384,0.39692,2521.0,2520.9,3.2078]
[1729788350286,1.68395758,2521.0,2520.9,4.49483758]
[1729788350677,1.68395758,2521.0,2520.9,4.89177758]
[1729788350881,0.39692,2521.0,2520.9,4.89177758]
[1729788351778,0.39692,2521.0,2520.9,4.49483758]
[1729788351979,1.68395758,2521.0,2520.9,4.49483758]
[1729788352478,1.68395758,2521.0,2520.9,4.89177758]
[1729788352674,0.39692,2521.0,2520.9,4.89177758]
[1729788353488,0.39692,2521.0,2520.9,1.68397758]
[1729788353679,0.39692,2521.0,2520.9,4.89177758]
[1729788357082,0.39692,2521.0,2520.9,4.49483758]
[1729788357286,1.68395758,2521.0,2520.9,3.2078]
[1729788357583,1.68395758,2521.0,2520.5,0.99251]
[1729788357584,0.39695,2520.8,2520.7,1.28703758]
[1729788358180,1.65615,2520.8,2520.7,1.68400758]
[1729788359478,1.65615,2520.8,2520.7,1.28703758]
[1729788359684,0.39698,2520.6,2520.5,1.68401758]
[1729788359884,1.65617,2520.8,2520.7,0.39697]
[1729788360084,1.65617,2520.8,2520.7,1.68400758]
[1729788360285,1.2592,2520.8,2520.7,1.68400758]
[1729788360487,1.65615,2520.8,2520.7,1.68400758]
[1729788360684,1.65615,2520.8,2520.7,2.09560758]
[1729788361190,1.2592,2520.8,2520.7,2.09560758]
[1729788361491,0.4428,2521.0,2520.9,0.39694]
[1729788361688,0.4428,2521.0,2520.9,1.68397758]
[1729788361689,0.83972,2521.0,2520.9,1.68397758]
[1729788361885,0.83972,2521.0,2520.9,1.28703758]
[1729788362387,0.83972,2521.0,2520.9,1.68397758]
[1729788362981,0.83972,2521.0,2520.9,1.28703758]
[1729788363188,0.39695,2520.9,2520.8,0.39695]
[1729788363396,0.39695,2520.8,2520.7,0.39696]
[1729788363588,0.39697,2520.7,2520.6,4.89180758]
[1729788363796,0.81647,2520.7,2520.6,4.89180758]
[1729788363993,0.81647,2520.7,2520.6,4.49483758]
[1729788364192,0.81647,2520.7,2520.3,1.28703758]
[1729788364193,1.70653758,2520.7,2520.3,1.28703758]
[1729788364388,0.39701,2520.5,2520.4,3.2078]
[1729788364588,0.39701,2520.5,2520.4,4.89185758]
[1729788365694,0.8265,2520.6,2520.5,0.397]
[1729788365892,0.4295,2520.6,2520.5,1.68403758]
[1729788366190,0.4195,2520.7,2520.6,0.39697]
[1729788366191,0.39697,2520.7,2520.6,0.39697]
[1729788366395,0.39697,2520.7,2520.6,2.10530758]
[1729788366990,0.417,2520.8,2520.6,1.70833758]
[1729788367192,0.39697,2520.7,2520.6,2.10530758]
[1729788367392,2.10099758,2520.8,2520.7,0.39697]
[1729788368689,0.81396,2520.8,2520.7,1.68400758]
[1729788368887,0.8699,2521.0,2520.9,0.39694]
[1729788369093,0.4295,2521.0,2520.9,1.68397758]
[1729788369594,0.4295,2521.0,2520.9,2.12037758]
[1729788370503,0.4031,2521.1,2521.0,0.39692]
[1729788370795,4.65733865,2521.3,2521.2,0.39689]
[1729788370990,4.65733865,2521.3,2521.2,1.68392758]
[1729788372000,4.65733865,2521.3,2521.2,5.77443575]
[1729788372696,4.65733865,2521.3,2521.2,6.39493456]
[1729788372898,4.65733865,2521.3,2521.2,5.65032758]
[1729788373098,4.65733865,2521.3,2521.2,6.39493914]
[1729788373298,4.65733865,2521.3,2521.2,6.3949303]
[1729788374200,3.98693865,2521.3,2521.2,8.87325991]
[1729788374394,3.98693865,2521.3,2521.2,8.09369754]
[1729788375294,5.17482072,2521.5,2521.4,0.39686]
[1729788375501,5.17482072,2521.5,2521.4,10.48160706]
[1729788375893,4.95772072,2521.5,2521.4,10.48160706]
[1729788376291,4.95772072,2521.5,2521.4,10.35751615]
[1729788377407,0.80088,2521.9,2521.8,0.39679]
[1729788377899,0.4041,2521.9,2521.8,0.39679]
[1729788378200,0.39676,2522.1,2522.0,0.39675]
[1729788378407,0.80086,2522.1,2522.0,0.39675]
[1729788380804,0.39677,2522.0,2521.9,0.39676]
[1729788382000,0.4041,2522.1,2521.8,3.2078]
[1729788382202,0.80086,2522.1,2522.0,0.39676]
[1729788382507,0.39677,2522.0,2521.9,0.39677]
[1729788383907,0.4041,2522.1,2521.8,3.2078]
[1729788384107,0.80085,2522.1,2522.0,0.39676]
[1729788384416,0.39677,2522.0,2521.9,0.39676]
[1729788389203,0.4041,2522.1,2521.8,3.2078]
[1729788389411,0.80086,2522.1,2522.0,0.39676]
[1729788389807,0.39677,2522.0,2521.9,0.39677]
[1729788390314,0.80757,2522.0,2521.9,0.39677]
[1729788391513,0.4108,2522.0,2521.8,3.2078]
[1729788391805,0.39678,2521.9,2521.8,3.2078]
[1729788392005,4.95758,2521.9,2521.4,2.78725615]
[1729788392199,0.4205,2521.8,2521.2,7.82097615]
[1729788392403,0.39686,2521.5,2521.4,0.39685]
[1729788392607,0.39684,2521.6,2521.5,0.39683]
[1729788392905,0.81134,2521.6,2521.5,0.39683]
[1729788393404,0.4145,2521.6,2521.5,0.39683]
[1729788393603,0.4145,2521.6,2521.5,3.60463]
[1729788394107,0.4205,2521.8,2521.7,0.39681]
[1729788394307,0.81729,2521.8,2521.7,1.68335476]
[1729788395113,0.4205,2521.8,2521.7,1.68335476]
[1729788395315,0.8425,2521.8,2521.7,1.68335476]
[1729788395508,0.422,2521.8,2521.7,1.68335476]
[1729788395708,0.81879,2521.8,2521.7,1.68335476]
[1729788396013,0.422,2521.8,2521.7,1.68335476]
[1729788396315,0.422,2521.8,2521.7,0.39681]
[1729788397108,0.81879,2521.8,2521.7,0.39681]
[1729788397608,0.81879,2521.8,2521.5,3.2078]
[1729788397817,0.39683,2521.6,2521.5,0.39683]
[1729788399012,0.39683,2521.6,2521.5,3.60463]
[1729788400008,0.39683,2521.6,2521.5,0.39683]
[1729788413516,0.422,2521.8,2521.4,0.4432]
[1729788413715,0.39683,2521.7,2521.6,0.39681]
[1729788414122,4.36243,2521.7,2521.6,0.39681]
[1729788414317,0.39683,2521.7,2521.6,0.39681]
[1729788416324,0.39683,2521.7,2521.6,1.68341328]
[1729788420927,0.39683,2521.7,2521.6,1.28660328]
[1729788421125,0.39683,2521.7,2521.5,1.28660328]
[1729788421126,1.28660328,2521.7,2521.5,1.28660328]
[1729788421315,0.39686,2521.4,2521.3,3.60466]
[1729788421516,0.39686,2521.4,2521.3,4.89126328]
[1729788422017,1.20385,2521.5,2521.4,0.39686]
[1729788422217,1.20385,2521.5,2521.4,1.68346328]
[1729788425023,0.807,2521.5,2521.2,0.8194]
[1729788425223,0.3969,2521.2,2520.9,1.42004]
[1729788425425,0.4381,2521.1,2521.0,0.39692]
[1729788425623,0.4381,2521.1,2521.0,3.60472]
[1729788426327,0.8534,2521.1,2521.0,4.89132328]
[1729788426629,1.25031,2521.1,2521.0,4.89132328]
[1729788426832,1.25031,2521.1,2521.0,1.68352328]
[1729788427126,0.8534,2521.1,2521.0,4.89132328]
[1729788427528,0.4118,2521.2,2521.0,4.49440328]
[1729788427730,0.80871,2521.2,2521.1,1.28660328]
[1729788428229,0.80871,2521.2,2521.1,1.68351328]
[1729788428617,0.4118,2521.2,2521.1,1.68351328]
[1729788428824,0.8604,2521.3,2521.1,1.28660328]
[1729788429124,0.99199,2521.9,2521.2,2.57320656]
[1729788429320,0.99199,2521.9,2521.6,0.39681]
[1729788429321,0.82333,2521.7,2521.6,0.39681]
[1729788429521,0.4265,2521.7,2521.6,0.39681]
[1729788429722,1.275,2521.8,2521.4,2.27875328]
[1729788429723,1.275,2521.8,2521.7,0.39681]
[1729788429930,1.27499,2521.8,2521.7,0.39681]
[1729788430128,0.4339,2521.8,2521.7,0.39681]
[1729788430627,0.4339,2521.8,2521.7,1.68341328]
[1729788430830,0.83069,2521.8,2521.7,1.68341328]
[1729788431129,0.4339,2521.8,2521.7,1.68341328]
[1729788431330,0.83069,2521.8,2521.7,1.68341328]
[1729788431918,0.4339,2521.8,2521.7,1.68341328]
[1729788432122,0.83069,2521.8,2521.7,1.68341328]
[1729788432617,0.4339,2521.8,2521.7,1.68341328]
[1729788433333,0.4339,2521.8,2521.6,3.60461]
[1729788433633,0.39681,2521.7,2521.6,3.60461]
[1729788433827,0.39681,2521.7,2521.6,4.89121328]
[1729788434326,0.8307,2521.8,2521.7,0.39681]
[1729788434526,0.4339,2521.8,2521.7,1.68341328]
[1729788434936,0.83069,2521.8,2521.7,1.68341328]
[1729788436325,0.4339,2521.8,2521.7,1.68341328]
[1729788436529,0.4339,2521.8,2521.7,2.54961328]
[1729788437631,0.83069,2521.8,2521.7,2.54961328]
[1729788438132,0.4339,2521.8,2521.7,2.54961328]
[1729788438521,0.4265,2521.9,2521.7,2.15280328]
[1729788438731,0.4265,2521.9,2521.8,1.68339328]
[1729788439038,0.82328,2521.9,2521.8,1.68339328]
[1729788439433,0.4265,2521.9,2521.8,1.68339328]
[1729788439733,0.82328,2521.9,2521.8,1.68339328]
[1729788440233,0.4265,2521.9,2521.8,1.68339328]
[1729788440535,0.82328,2521.9,2521.8,1.68339328]
[1729788441128,0.4265,2521.9,2521.8,1.68339328]
[1729788441428,0.82328,2521.9,2521.8,1.68339328]
[1729788443333,0.4265,2521.9,2521.8,1.68339328]
[1729788443533,0.82328,2521.9,2521.8,1.68339328]
[1729788443936,0.39681,2521.8,2521.7,1.68341328]
[1729788444241,0.39681,2521.7,2521.6,3.2078]
[1729788444447,5.64901328,2521.7,2521.6,3.2078]
[1729788444933,5.64901328,2521.7,2521.5,1.28660328]
[1729788444934,5.25220328,2521.7,2521.5,1.28660328]
[1729788445138,1.24324,2521.6,2521.5,0.39683]
[1729788445337,1.24324,2521.6,2521.5,1.68343328]
[1729788445834,0.8464,2521.6,2521.5,1.68343328]
[1729788446037,0.4068,2521.6,2521.5,1.68343328]
[1729788446232,0.8663,2521.9,2521.5,1.41070364]
[1729788446440,1.26309,2521.9,2521.8,1.68339328]
[1729788447635,2.98339328,2521.9,2521.8,1.68339328]
[1729788447941,1.3,2521.9,2521.8,1.68339328]
[1729788448839,1.69678,2521.9,2521.8,1.68339328]
[1729788449438,2.98338328,2521.9,2521.8,0.39679]
[1729788449942,2.98338328,2521.9,2521.7,1.28660328]
[1729788449943,0.39679,2521.8,2521.7,1.68340328]
[1729788451335,2.98339328,2521.9,2521.8,0.39679]
[1729788451533,0.39679,2521.8,2521.7,1.68340328]
[1729788451733,0.39683,2521.6,2521.5,1.68343328]
[1729788452441,0.81443,2521.6,2521.5,1.68343328]
[1729788452634,0.4176,2521.6,2521.5,1.68343328]
[1729788452830,0.4176,2521.6,2521.5,0.52092865]
[1729788453040,0.4176,2521.6,2521.5,1.28660328]
[1729788453235,0.81443,2521.6,2521.5,1.28660328]
[1729788453937,0.81443,2521.6,2521.5,1.68344328]
[1729788454836,0.39687,2521.4,2521.2,3.2078]
[1729788455038,0.39687,2521.3,2521.2,0.39688]
[1729788455333,0.39687,2521.3,2521.2,1.28660328]
[1729788455539,0.39687,2521.3,2521.2,1.68349328]
[1729788456342,0.39686,2521.4,2521.3,0.39686]
[1729788456641,0.39686,2521.4,2521.3,1.28660328]
[1729788456852,0.39686,2521.4,2521.3,1.68347328]
[1729788457439,1.25415,2521.5,2521.4,0.39686]
[1729788457741,1.25414,2521.5,2521.4,1.28660328]
[1729788458545,0.8573,2521.5,2521.4,1.28660328]
[1729788458837,0.8573,2521.5,2521.4,1.68346328]
[1729788458838,1.25414,2521.5,2521.4,1.68346328]
[1729788460037,1.25414,2521.5,2521.4,1.28660328]
[1729788460440,1.25415,2521.5,2521.4,1.68346328]
[1729788461039,1.25415,2521.5,2521.4,1.28660328]
[1729788462439,1.25415,2521.5,2521.4,1.68346328]
[1729788462948,0.8573,2521.5,2521.4,1.68346328]
[1729788463145,0.4208,2521.5,2521.4,1.68346328]
[1729788463340,0.81764,2521.5,2521.4,1.68346328]
[1729788464137,0.4208,2521.5,2521.4,1.68346328]
[1729788464342,0.81764,2521.5,2521.4,1.68346328]
[1729788464544,0.4147,2521.7,2521.4,1.68346328]
[1729788464545,0.81152,2521.7,2521.6,0.39683]
[1729788464845,0.81152,2521.7,2521.6,1.68343328]
[1729788465045,0.4147,2521.7,2521.6,1.28660328]
[1729788465256,0.4418,2521.8,2521.6,1.28660328]
[1729788465447,0.39681,2521.7,2521.6,0.39682]
[1729788465643,0.39681,2521.7,2521.6,1.68342328]
[1729788465850,0.83861,2521.8,2521.7,0.39681]